[Event "*** Titled Tuesday 3|2 Blitz"]
[Site "Chess.com"]
[Date "2015.08.04"]
[Round "5"]
[White "FMCouch"]
[Black "eugeniusjr"]
[Result "1-0"]
[WhiteElo "2141"]
[BlackElo "1951"]
[TimeControl "180+2"]
[EndTime "12:34:00 PDT"]
[Termination "FMCouch won on time"]

1. e4 {[%clk 0:03:01.9]} 1... c5 {[%clk 0:03:01.1]} 2. Nf3 {[%clk 0:03:02.8]}
2... g6 {[%clk 0:03:02.5]} 3. c3 {[%clk 0:02:58.6]} 3... Bg7 {[%clk 0:03:02.8]}
4. d4 {[%clk 0:03:00.1]} 4... cxd4 {[%clk 0:03:04.7]} 5. cxd4 {[%clk 0:03:01.4]}
5... d5 {[%clk 0:03:05.6]} 6. e5 {[%clk 0:03:02.2]} 6... Bg4 {[%clk 0:03:06.2]}
7. Bb5+ {[%clk 0:03:01.3]} 7... Nd7 {[%clk 0:03:06.1]} 8. O-O {[%clk 0:03:00.4]}
8... e6 {[%clk 0:03:06.8]} 9. Nc3 {[%clk 0:02:59.5]} 9... Ne7 {[%clk 0:03:07]}
10. h3 {[%clk 0:02:58]} 10... Bxf3 {[%clk 0:03:07.6]} 11. Qxf3 {[%clk
0:02:59.2]} 11... Nf5 {[%clk 0:03:07.6]} 12. Be3 {[%clk 0:03:00.6]} 12... O-O
{[%clk 0:03:08.3]} 13. g4 {[%clk 0:03:01.6]} 13... Nxe3 {[%clk 0:02:54.9]} 14.
fxe3 {[%clk 0:03:01.3]} 14... f6 {[%clk 0:02:55.1]} 15. Nxd5 {[%clk 0:02:51.9]}
15... fxe5 {[%clk 0:02:45.2]} 16. Qg2 {[%clk 0:02:51.2]} 16... exd4 {[%clk
0:02:39]} 17. Nf4 {[%clk 0:02:51.3]} 17... Nc5 {[%clk 0:02:22.3]} 18. Rad1
{[%clk 0:02:38]} 18... Kh8 {[%clk 0:02:13.9]} 19. b4 {[%clk 0:02:35.1]} 19... e5
{[%clk 0:01:43.3]} 20. exd4 {[%clk 0:02:10.4]} 20... Qb6 {[%clk 0:01:04.1]} 21.
dxc5 {[%clk 0:01:56]} 21... Qxb5 {[%clk 0:01:02.2]} 22. Nd5 {[%clk 0:01:56.9]}
22... Rad8 {[%clk 0:00:38.3]} 23. Rxf8+ {[%clk 0:01:54.2]} 23... Bxf8 {[%clk
0:00:23.2]} 24. Qe4 {[%clk 0:01:46.7]} 24... Bg7 {[%clk 0:00:20.7]} 25. Kg2
{[%clk 0:01:39.6]} 25... Qa4 {[%clk 0:00:18.5]} 26. Nc3 {[%clk 0:01:31.2]} 26...
Qe8 {[%clk 0:00:20]} 27. Rxd8 {[%clk 0:01:31]} 27... Qxd8 {[%clk 0:00:21.9]} 28.
Qd5 {[%clk 0:01:32.4]} 28... Qe7 {[%clk 0:00:17]} 29. Ne4 {[%clk 0:01:31.1]}
29... h6 {[%clk 0:00:16.4]} 30. Kg3 {[%clk 0:01:23.8]} 30... Kh7 {[%clk
0:00:14.1]} 31. h4 {[%clk 0:01:23.5]} 31... Qe8 {[%clk 0:00:09.8]} 32. g5 {[%clk
0:01:20.9]} 32... h5 {[%clk 0:00:09]} 33. Qxb7 {[%clk 0:01:12.4]} 1-0

[Event "*** Titled Tuesday 3|2 Blitz"]
[Site "Chess.com"]
[Date "2015.08.04"]
[Round "5"]
[White "kesarev"]
[Black "dabee"]
[Result "0-1"]
[WhiteElo "2194"]
[BlackElo "2448"]
[TimeControl "180+2"]
[EndTime "12:34:02 PDT"]
[Termination "dabee won by resignation"]

1. Nf3 {[%clk 0:03:01.9]} 1... d5 {[%clk 0:02:58]} 2. c4 {[%clk 0:03:02.2]} 2...
c6 {[%clk 0:02:58.8]} 3. e3 {[%clk 0:02:59.5]} 3... Nf6 {[%clk 0:02:58.3]} 4. b3
{[%clk 0:03:00]} 4... e6 {[%clk 0:02:56.5]} 5. Bb2 {[%clk 0:03:00.5]} 5... Bd6
{[%clk 0:02:56.1]} 6. Qc2 {[%clk 0:03:00.8]} 6... Nbd7 {[%clk 0:02:57]} 7. g4
{[%clk 0:03:01.2]} 7... h6 {[%clk 0:02:51.2]} 8. h4 {[%clk 0:02:49.7]} 8... e5
{[%clk 0:02:49.9]} 9. Rg1 {[%clk 0:02:49.5]} 9... e4 {[%clk 0:02:49.5]} 10. Nd4
{[%clk 0:02:44.7]} 10... Ne5 {[%clk 0:02:46.7]} 11. g5 {[%clk 0:02:44]} 11...
hxg5 {[%clk 0:02:46.7]} 12. hxg5 {[%clk 0:02:44.7]} 12... Nfg4 {[%clk
0:02:47.7]} 13. cxd5 {[%clk 0:02:16.1]} 13... c5 {[%clk 0:02:47.1]} 14. Qxe4
{[%clk 0:02:14.4]} 14... cxd4 {[%clk 0:02:21.1]} 15. exd4 {[%clk 0:02:15.3]}
15... Qe7 {[%clk 0:02:04.8]} 16. dxe5 {[%clk 0:02:13.5]} 16... Bxe5 {[%clk
0:01:46.5]} 17. d6 {[%clk 0:01:24.7]} 17... Bxd6 {[%clk 0:01:34.2]} 18. Bb5+
{[%clk 0:01:24]} 18... Kf8 {[%clk 0:01:33.1]} 19. Nc3 {[%clk 0:01:18.5]} 19...
Bf5 {[%clk 0:01:19.5]} 20. Qxe7+ {[%clk 0:01:16.9]} 20... Bxe7 {[%clk
0:01:19.5]} 21. Nd5 {[%clk 0:01:02.6]} 21... Bxg5 {[%clk 0:01:17.1]} 22. Ne3
{[%clk 0:00:55.1]} 22... Nxe3 {[%clk 0:01:12]} 23. fxe3 {[%clk 0:00:55.4]} 23...
f6 {[%clk 0:01:08.4]} 24. Ke2 {[%clk 0:00:53.7]} 24... Rh2+ {[%clk 0:01:07.3]}
25. Kd1 {[%clk 0:00:49.5]} 25... Rd8 {[%clk 0:01:03.5]} 26. Kc1 {[%clk
0:00:42.1]} 26... Rdxd2 {[%clk 0:01:00]} 27. Ba3+ {[%clk 0:00:36.1]} 27... Kf7
{[%clk 0:00:58.3]} 28. Bc4+ {[%clk 0:00:35.8]} 28... Ke8 {[%clk 0:00:43.8]} 29.
Bb5+ {[%clk 0:00:34.3]} 29... Kd8 {[%clk 0:00:40.6]} 30. Rd1 {[%clk 0:00:35.1]}
30... Rxd1+ {[%clk 0:00:40.7]} 31. Kxd1 {[%clk 0:00:34.8]} 31... Rh1+ {[%clk
0:00:41.3]} 0-1

[Event "*** Titled Tuesday 3|2 Blitz"]
[Site "Chess.com"]
[Date "2015.08.04"]
[Round "5"]
[White "Keaton87"]
[Black "ViktoriaGloriam"]
[Result "1-0"]
[WhiteElo "2437"]
[BlackElo "2182"]
[TimeControl "180+2"]
[EndTime "12:34:07 PDT"]
[Termination "Keaton87 won by resignation"]

1. e4 {[%clk 0:03:01.9]} 1... d5 {[%clk 0:02:55.5]} 2. exd5 {[%clk 0:03:01.9]}
2... Nf6 {[%clk 0:02:56.1]} 3. Bb5+ {[%clk 0:03:02.3]} 3... Bd7 {[%clk
0:02:55.9]} 4. Be2 {[%clk 0:03:03]} 4... Nxd5 {[%clk 0:02:53.8]} 5. d4 {[%clk
0:03:04.2]} 5... c6 {[%clk 0:02:52.1]} 6. Nf3 {[%clk 0:03:05.4]} 6... g6 {[%clk
0:02:53]} 7. O-O {[%clk 0:03:06.5]} 7... Bg7 {[%clk 0:02:53.9]} 8. c4 {[%clk
0:03:07.8]} 8... Nb6 {[%clk 0:02:53.8]} 9. Nc3 {[%clk 0:03:08.6]} 9... O-O
{[%clk 0:02:54.9]} 10. Be3 {[%clk 0:03:09.7]} 10... Bg4 {[%clk 0:02:55.2]} 11.
b3 {[%clk 0:03:09.2]} 11... Na6 {[%clk 0:02:55]} 12. Qd2 {[%clk 0:03:09.1]}
12... Re8 {[%clk 0:02:32.9]} 13. Rac1 {[%clk 0:03:06.2]} 13... Nc7 {[%clk
0:02:33.3]} 14. Rfd1 {[%clk 0:03:06.6]} 14... a5 {[%clk 0:02:24.8]} 15. h3
{[%clk 0:03:07.3]} 15... Bxf3 {[%clk 0:02:25]} 16. Bxf3 {[%clk 0:03:08.3]} 16...
Nd7 {[%clk 0:01:29.8]} 17. Ne4 {[%clk 0:03:07.2]} 17... a4 {[%clk 0:01:16.2]}
18. Qb4 {[%clk 0:02:54.2]} 18... axb3 {[%clk 0:01:15.3]} 19. axb3 {[%clk
0:02:54.4]} 19... Qc8 {[%clk 0:01:13.2]} 20. Ra1 {[%clk 0:02:36.9]} 20... Na6
{[%clk 0:01:11.1]} 21. Qd2 {[%clk 0:02:34]} 21... c5 {[%clk 0:01:10.1]} 22. Ra5
{[%clk 0:02:22.3]} 22... cxd4 {[%clk 0:01:04.9]} 23. Bxd4 {[%clk 0:02:23.4]}
23... Bxd4 {[%clk 0:01:06.6]} 24. Qxd4 {[%clk 0:02:24.2]} 24... Rd8 {[%clk
0:01:08.2]} 25. Rd5 {[%clk 0:02:22.7]} 25... Nab8 {[%clk 0:00:25]} 26. Nc5
{[%clk 0:02:17.7]} 26... e6 {[%clk 0:00:24.7]} 27. Rd6 {[%clk 0:02:07]} 27... e5
{[%clk 0:00:10.3]} 28. Qd5 {[%clk 0:01:53]} 28... Ra5 {[%clk 0:00:11.2]} 29. b4
{[%clk 0:01:48.9]} 29... Rxc5 {[%clk 0:00:09.6]} 30. bxc5 {[%clk 0:01:49.4]}
30... Kf8 {[%clk 0:00:06.2]} 31. Qxe5 {[%clk 0:01:43.8]} 31... Nc6 {[%clk
0:00:04.2]} 32. Qd5 {[%clk 0:01:40.2]} 32... Ncb8 {[%clk 0:00:02.9]} 33. Bg4
{[%clk 0:01:38.4]} 33... f5 {[%clk 0:00:02.7]} 34. Bf3 {[%clk 0:01:30.8]} 34...
Re8 {[%clk 0:00:04.2]} 35. Rxd7 {[%clk 0:01:26.1]} 35... Nxd7 {[%clk 0:00:05]}
36. Qxd7 {[%clk 0:01:26.9]} 36... Re1+ {[%clk 0:00:06.6]} 37. Kh2 {[%clk
0:01:27.3]} 1-0

[Event "*** Titled Tuesday 3|2 Blitz"]
[Site "Chess.com"]
[Date "2015.08.04"]
[Round "5"]
[White "Tobi-Wan-Kenobi"]
[Black "Colombiano07"]
[Result "1-0"]
[WhiteElo "2372"]
[BlackElo "1979"]
[TimeControl "180+2"]
[EndTime "12:34:19 PDT"]
[Termination "Tobi-Wan-Kenobi won by resignation"]

1. e4 {[%clk 0:02:52.2]} 1... d5 {[%clk 0:03:00.4]} 2. exd5 {[%clk 0:02:52.3]}
2... Qxd5 {[%clk 0:03:02.3]} 3. Nc3 {[%clk 0:02:53.2]} 3... Qa5 {[%clk
0:03:02.6]} 4. d4 {[%clk 0:02:52.8]} 4... Nf6 {[%clk 0:03:03.1]} 5. Bd2 {[%clk
0:02:52.9]} 5... c6 {[%clk 0:02:59.2]} 6. Bc4 {[%clk 0:02:51.4]} 6... Bf5 {[%clk
0:02:58.8]} 7. Qe2 {[%clk 0:02:50.1]} 7... e6 {[%clk 0:02:56.8]} 8. d5 {[%clk
0:02:50.5]} 8... cxd5 {[%clk 0:02:55.9]} 9. Nxd5 {[%clk 0:02:51.4]} 9... Qd8
{[%clk 0:02:54]} 10. Nxf6+ {[%clk 0:02:52.1]} 10... gxf6 {[%clk 0:02:49]} 11.
O-O-O {[%clk 0:02:51.1]} 11... Nd7 {[%clk 0:02:39.3]} 12. Bc3 {[%clk 0:02:43.1]}
12... Bh6+ {[%clk 0:02:17.3]} 13. Kb1 {[%clk 0:02:41.9]} 13... O-O {[%clk
0:02:18.5]} 14. g4 {[%clk 0:02:28.1]} 14... Bg6 {[%clk 0:02:06.1]} 15. Bb5
{[%clk 0:02:27.2]} 15... Rc8 {[%clk 0:01:57.9]} 16. Bxd7 {[%clk 0:02:08.8]}
16... Rxc3 {[%clk 0:01:37.9]} 17. bxc3 {[%clk 0:02:05.7]} 17... Qb6+ {[%clk
0:01:39]} 18. Qb5 {[%clk 0:01:20.9]} 18... Qxf2 {[%clk 0:01:37.2]} 19. Qb3
{[%clk 0:01:21]} 19... Qg2 {[%clk 0:01:33.2]} 20. Nh3 {[%clk 0:01:12.2]} 20...
Qxh3 {[%clk 0:01:33.8]} 21. Bb5 {[%clk 0:00:58]} 21... Rc8 {[%clk 0:01:29.1]}
22. Bd3 {[%clk 0:00:56.3]} 22... Bg7 {[%clk 0:01:24.1]} 23. Qxb7 {[%clk
0:00:53]} 23... Rxc3 {[%clk 0:01:14.4]} 24. Qb8+ {[%clk 0:00:48.3]} 24... Bf8
{[%clk 0:01:15.2]} 25. Bxg6 {[%clk 0:00:48.5]} 25... hxg6 {[%clk 0:01:16.9]} 26.
Rd8 {[%clk 0:00:48.5]} 26... Qh6 {[%clk 0:01:13]} 27. Rhd1 {[%clk 0:00:45.7]}
27... Rc4 {[%clk 0:00:31.6]} 28. Ka1 {[%clk 0:00:33.8]} 28... Rxg4 {[%clk
0:00:29.2]} 29. Rxf8+ {[%clk 0:00:28.3]} 1-0

[Event "*** Titled Tuesday 3|2 Blitz"]
[Site "Chess.com"]
[Date "2015.08.04"]
[Round "5"]
[White "wonderfultime"]
[Black "Janosik"]
[Result "1-0"]
[WhiteElo "2647"]
[BlackElo "2507"]
[TimeControl "180+2"]
[EndTime "12:34:30 PDT"]
[Termination "wonderfultime won by resignation"]

1. d4 {[%clk 0:03:01.9]} 1... Nf6 {[%clk 0:03:00.7]} 2. c4 {[%clk 0:03:02.8]}
2... e6 {[%clk 0:03:02.2]} 3. Nf3 {[%clk 0:03:03.9]} 3... Bb4+ {[%clk
0:03:03.2]} 4. Nbd2 {[%clk 0:03:05.1]} 4... b6 {[%clk 0:03:04.2]} 5. a3 {[%clk
0:03:06.4]} 5... Bxd2+ {[%clk 0:03:05.6]} 6. Qxd2 {[%clk 0:03:08.3]} 6... Bb7
{[%clk 0:03:07.5]} 7. e3 {[%clk 0:03:08.8]} 7... a5 {[%clk 0:03:08.8]} 8. b3
{[%clk 0:03:06.7]} 8... d6 {[%clk 0:03:10]} 9. Bb2 {[%clk 0:03:07.9]} 9... Nbd7
{[%clk 0:03:11.7]} 10. Be2 {[%clk 0:03:09.1]} 10... O-O {[%clk 0:03:12.4]} 11.
O-O {[%clk 0:03:10.4]} 11... Qe7 {[%clk 0:03:13.5]} 12. b4 {[%clk 0:03:09]}
12... axb4 {[%clk 0:03:14.1]} 13. axb4 {[%clk 0:03:10]} 13... Ne4 {[%clk
0:03:12.6]} 14. Qc2 {[%clk 0:03:09.8]} 14... f5 {[%clk 0:03:14.3]} 15. d5 {[%clk
0:02:37.3]} 15... Ng5 {[%clk 0:02:30.8]} 16. Nd4 {[%clk 0:02:16.7]} 16... Rxa1
{[%clk 0:01:52.2]} 17. Bxa1 {[%clk 0:02:15.4]} 17... exd5 {[%clk 0:01:28.5]} 18.
cxd5 {[%clk 0:02:15]} 18... Bxd5 {[%clk 0:01:30.4]} 19. Qxc7 {[%clk 0:01:57.4]}
19... f4 {[%clk 0:01:11.4]} 20. Bc4 {[%clk 0:01:52.9]} 20... Bxc4 {[%clk
0:00:55.9]} 21. Qxc4+ {[%clk 0:01:54.8]} 21... Kh8 {[%clk 0:00:57.6]} 22. exf4
{[%clk 0:01:30.6]} 22... Rxf4 {[%clk 0:00:53.5]} 23. Qc8+ {[%clk 0:01:31.7]}
23... Rf8 {[%clk 0:00:52.9]} 24. Qc1 {[%clk 0:01:20]} 24... h6 {[%clk
0:00:21.5]} 25. Re1 {[%clk 0:01:19.3]} 25... Qf7 {[%clk 0:00:22.6]} 26. Qe3
{[%clk 0:01:20.5]} 26... Ne5 {[%clk 0:00:22.4]} 27. f3 {[%clk 0:00:53.2]} 27...
Qg6 {[%clk 0:00:21.6]} 28. Kh1 {[%clk 0:00:52]} 28... Nd3 {[%clk 0:00:20.1]} 29.
Rd1 {[%clk 0:00:28.3]} 29... Re8 {[%clk 0:00:21.4]} 30. Qd2 {[%clk 0:00:27.8]}
30... Ne6 {[%clk 0:00:17]} 31. Qxd3 {[%clk 0:00:24.5]} 31... Qxd3 {[%clk
0:00:17.4]} 32. Rxd3 {[%clk 0:00:26.4]} 32... Nxd4 {[%clk 0:00:19.1]} 33. Bxd4
{[%clk 0:00:27.6]} 1-0

[Event "*** Titled Tuesday 3|2 Blitz"]
[Site "Chess.com"]
[Date "2015.08.04"]
[Round "5"]
[White "michaelk123"]
[Black "bugsbunny444"]
[Result "0-1"]
[WhiteElo "2026"]
[BlackElo "2313"]
[TimeControl "180+2"]
[EndTime "12:34:33 PDT"]
[Termination "bugsbunny444 won by resignation"]

1. e4 {[%clk 0:03:01.9]} 1... e6 {[%clk 0:03:00.9]} 2. d4 {[%clk 0:03:01.6]}
2... d5 {[%clk 0:03:02.3]} 3. Nd2 {[%clk 0:03:02.7]} 3... Nf6 {[%clk 0:03:03.2]}
4. e5 {[%clk 0:03:04.2]} 4... Nfd7 {[%clk 0:03:03.6]} 5. Bd3 {[%clk 0:03:05.7]}
5... c5 {[%clk 0:03:05]} 6. c3 {[%clk 0:03:05.9]} 6... Nc6 {[%clk 0:03:06.6]} 7.
Ne2 {[%clk 0:03:06.6]} 7... cxd4 {[%clk 0:03:08.2]} 8. cxd4 {[%clk 0:03:07.9]}
8... f6 {[%clk 0:03:09.8]} 9. exf6 {[%clk 0:03:06]} 9... Nxf6 {[%clk 0:03:11.7]}
10. O-O {[%clk 0:03:04.5]} 10... Bd6 {[%clk 0:03:13.3]} 11. Nf3 {[%clk
0:03:05.3]} 11... O-O {[%clk 0:03:15]} 12. Bf4 {[%clk 0:03:04.9]} 12... Bxf4
{[%clk 0:03:16.5]} 13. Nxf4 {[%clk 0:03:05.8]} 13... Qd6 {[%clk 0:03:18.4]} 14.
g3 {[%clk 0:02:59.9]} 14... Qb4 {[%clk 0:03:19.5]} 15. Rb1 {[%clk 0:02:51.1]}
15... Bd7 {[%clk 0:03:19.4]} 16. a3 {[%clk 0:02:49.7]} 16... Qb6 {[%clk
0:03:20.6]} 17. Qd2 {[%clk 0:02:38.3]} 17... Rae8 {[%clk 0:02:31.7]} 18. Rfe1
{[%clk 0:01:58.9]} 18... Re7 {[%clk 0:02:24.9]} 19. Bc2 {[%clk 0:01:54.6]} 19...
g5 {[%clk 0:02:20.8]} 20. Nd3 {[%clk 0:00:29.4]} 20... Ne4 {[%clk 0:02:12.9]}
21. Qe3 {[%clk 0:00:30]} 21... Rxf3 {[%clk 0:01:37.3]} 22. Qxf3 {[%clk
0:00:27.8]} 22... Nxd4 {[%clk 0:01:38.6]} 23. Qe3 {[%clk 0:00:10.8]} 23... Nxc2
{[%clk 0:01:36.2]} 24. Qxb6 {[%clk 0:00:12.3]} 24... axb6 {[%clk 0:01:34.3]} 25.
Rec1 {[%clk 0:00:14.2]} 25... Nd2 {[%clk 0:01:13.3]} 26. Rxc2 {[%clk 0:00:13.8]}
26... Nxb1 {[%clk 0:01:14]} 27. Ne5 {[%clk 0:00:11.8]} 27... Ba4 {[%clk
0:01:03.6]} 28. b3 {[%clk 0:00:12.9]} 28... Bc6 {[%clk 0:00:33.9]} 29. Nxc6
{[%clk 0:00:09.1]} 29... bxc6 {[%clk 0:00:34.7]} 30. a4 {[%clk 0:00:10.5]} 30...
c5 {[%clk 0:00:31.6]} 31. Rb2 {[%clk 0:00:03.6]} 31... Nc3 {[%clk 0:00:31.8]}
0-1

[Event "*** Titled Tuesday 3|2 Blitz"]
[Site "Chess.com"]
[Date "2015.08.04"]
[Round "5"]
[White "mortalbovine"]
[Black "stepanosinovsky"]
[Result "0-1"]
[WhiteElo "1736"]
[BlackElo "2260"]
[TimeControl "180+2"]
[EndTime "12:34:35 PDT"]
[Termination "stepanosinovsky won by resignation"]

1. e4 {[%clk 0:03:01.9]} 1... b6 {[%clk 0:03:01.9]} 2. d4 {[%clk 0:02:52.5]}
2... Bb7 {[%clk 0:03:03.8]} 3. Bd3 {[%clk 0:02:45.4]} 3... e6 {[%clk 0:03:05.7]}
4. Nf3 {[%clk 0:02:36.3]} 4... Ne7 {[%clk 0:03:07.6]} 5. Bg5 {[%clk 0:02:24.4]}
5... d5 {[%clk 0:03:09.5]} 6. exd5 {[%clk 0:02:12.1]} 6... Qxd5 {[%clk
0:02:56.6]} 7. Bxe7 {[%clk 0:02:08.8]} 7... Bxe7 {[%clk 0:02:55.8]} 8. Nc3
{[%clk 0:02:09.3]} 8... Qh5 {[%clk 0:02:53.8]} 9. Qe2 {[%clk 0:02:03.8]} 9...
Nc6 {[%clk 0:02:52.8]} 10. O-O-O {[%clk 0:01:50.2]} 10... O-O-O {[%clk 0:02:52]}
11. Be4 {[%clk 0:01:35.6]} 11... Bf6 {[%clk 0:02:46]} 12. Bxc6 {[%clk
0:01:20.2]} 12... Bxc6 {[%clk 0:02:45.3]} 13. Qe3 {[%clk 0:00:58.9]} 13... Bxf3
{[%clk 0:02:41.4]} 14. gxf3 {[%clk 0:01:00.8]} 14... Rd7 {[%clk 0:02:35.8]} 15.
Qe4 {[%clk 0:00:56.5]} 15... Kb8 {[%clk 0:02:31.1]} 16. Qc6 {[%clk 0:00:39.3]}
16... Rhd8 {[%clk 0:02:22.8]} 17. Nb5 {[%clk 0:00:29.9]} 17... Qd5 {[%clk
0:02:05.8]} 18. Qxd5 {[%clk 0:00:25.4]} 18... Rxd5 {[%clk 0:02:04]} 19. c4
{[%clk 0:00:24]} 19... Rf5 {[%clk 0:02:03.9]} 20. Rd3 {[%clk 0:00:17.3]} 20...
a6 {[%clk 0:02:03.1]} 21. Nc3 {[%clk 0:00:15]} 21... Rxd4 {[%clk 0:02:00.9]} 22.
Rhd1 {[%clk 0:00:14.8]} 22... Rxc4 {[%clk 0:01:37.7]} 23. Kb1 {[%clk 0:00:10.3]}
23... Bxc3 {[%clk 0:01:14.1]} 24. bxc3 {[%clk 0:00:12.2]} 24... Rcf4 {[%clk
0:01:10]} 25. Rd8+ {[%clk 0:00:12.3]} 25... Kb7 {[%clk 0:01:09.6]} 26. R1d7
{[%clk 0:00:08.2]} 26... Rxf3 {[%clk 0:01:08.2]} 27. Re7 {[%clk 0:00:05.3]}
27... Rxc3 {[%clk 0:01:01.8]} 28. Rdd7 {[%clk 0:00:06]} 28... Rxf2 {[%clk
0:00:58.8]} 29. Rxf7 {[%clk 0:00:07.4]} 29... Rxh2 {[%clk 0:00:57]} 30. Rxg7
{[%clk 0:00:08.7]} 30... a5 {[%clk 0:00:56.6]} 31. Rde7 {[%clk 0:00:07.1]} 31...
a4 {[%clk 0:00:56.9]} 32. Rxe6 {[%clk 0:00:07.7]} 32... a3 {[%clk 0:00:57.8]}
33. Re1 {[%clk 0:00:07.7]} 33... Rb2+ {[%clk 0:00:54.7]} 34. Ka1 {[%clk
0:00:08.4]} 34... h5 {[%clk 0:00:54.2]} 35. Rxc7+ {[%clk 0:00:09]} 35... Rxc7
{[%clk 0:00:50.2]} 36. Re7 {[%clk 0:00:10]} 36... Rxa2+ {[%clk 0:00:49.8]} 37.
Kxa2 {[%clk 0:00:08.5]} 37... Rxe7 {[%clk 0:00:50.6]} 0-1

[Event "*** Titled Tuesday 3|2 Blitz"]
[Site "Chess.com"]
[Date "2015.08.04"]
[Round "5"]
[White "Prolta"]
[Black "Sunil"]
[Result "0-1"]
[WhiteElo "1705"]
[BlackElo "1912"]
[TimeControl "180+2"]
[EndTime "12:34:46 PDT"]
[Termination "Sunil won by resignation"]

1. Nf3 {[%clk 0:03:01.9]} 1... g6 {[%clk 0:02:55.9]} 2. d4 {[%clk 0:03:02.8]}
2... Bg7 {[%clk 0:02:56.9]} 3. Bf4 {[%clk 0:02:59.5]} 3... d6 {[%clk 0:02:57.7]}
4. e3 {[%clk 0:03:00.9]} 4... c5 {[%clk 0:02:58.5]} 5. c3 {[%clk 0:02:59.2]}
5... cxd4 {[%clk 0:02:59.3]} 6. cxd4 {[%clk 0:03:01.1]} 6... Nf6 {[%clk
0:03:00.4]} 7. Be2 {[%clk 0:03:02.4]} 7... O-O {[%clk 0:03:01.9]} 8. O-O {[%clk
0:03:03.8]} 8... Nh5 {[%clk 0:03:02.9]} 9. Bg3 {[%clk 0:03:03.2]} 9... Nxg3
{[%clk 0:03:02.9]} 10. hxg3 {[%clk 0:03:05.1]} 10... Nc6 {[%clk 0:03:03.7]} 11.
Nc3 {[%clk 0:03:04.1]} 11... Bg4 {[%clk 0:03:02.3]} 12. a3 {[%clk 0:03:02.7]}
12... a6 {[%clk 0:03:00.3]} 13. Rc1 {[%clk 0:03:01.8]} 13... Rc8 {[%clk
0:03:00.9]} 14. b4 {[%clk 0:02:59.1]} 14... Bd7 {[%clk 0:02:43.3]} 15. Qb3
{[%clk 0:02:55.9]} 15... Qb6 {[%clk 0:02:37]} 16. Nd5 {[%clk 0:02:54.8]} 16...
Qd8 {[%clk 0:02:32]} 17. Nc3 {[%clk 0:02:49.2]} 17... Qb6 {[%clk 0:02:29.4]} 18.
Nd5 {[%clk 0:02:47.3]} 18... Qd8 {[%clk 0:02:30]} 19. Nc3 {[%clk 0:02:47.5]}
19... Na7 {[%clk 0:02:22.3]} 20. Nd2 {[%clk 0:02:30.3]} 20... b5 {[%clk
0:02:20.5]} 21. Bf3 {[%clk 0:02:26]} 21... e6 {[%clk 0:02:18.9]} 22. Bb7 {[%clk
0:02:20.6]} 22... Rb8 {[%clk 0:02:11.4]} 23. Bf3 {[%clk 0:02:15.5]} 23... d5
{[%clk 0:02:12.4]} 24. Ne2 {[%clk 0:02:09.9]} 24... Qb6 {[%clk 0:02:12]} 25. Rc5
{[%clk 0:02:04.4]} 25... Rfc8 {[%clk 0:02:11.1]} 26. Rfc1 {[%clk 0:02:05.5]}
26... Bf8 {[%clk 0:02:12.2]} 27. Rxc8 {[%clk 0:02:06]} 27... Rxc8 {[%clk
0:02:11.7]} 28. Rxc8 {[%clk 0:02:07.3]} 28... Nxc8 {[%clk 0:02:12.4]} 29. Qc3
{[%clk 0:02:08.5]} 29... Nd6 {[%clk 0:02:12.1]} 30. Nb3 {[%clk 0:02:01.9]} 30...
Nc4 {[%clk 0:02:10.2]} 31. Nc5 {[%clk 0:02:02.3]} 31... Bc8 {[%clk 0:02:11.2]}
32. Nc1 {[%clk 0:01:48.2]} 32... a5 {[%clk 0:01:47.3]} 33. N1d3 {[%clk
0:01:25.6]} 33... axb4 {[%clk 0:01:45]} 34. axb4 {[%clk 0:01:25]} 34... Qa7
{[%clk 0:01:43.3]} 35. Kh2 {[%clk 0:00:32.4]} 35... Bd6 {[%clk 0:01:43.6]} 36.
Nb2 {[%clk 0:00:23.6]} 36... Qa1 {[%clk 0:01:39.2]} 37. Nd1 {[%clk 0:00:21.1]}
37... Qb1 {[%clk 0:01:33.3]} 38. Be2 {[%clk 0:00:12.9]} 38... Kg7 {[%clk
0:01:32.1]} 39. Bf3 {[%clk 0:00:14.2]} 39... h5 {[%clk 0:01:30.9]} 40. Be2
{[%clk 0:00:13]} 40... h4 {[%clk 0:01:31.8]} 41. Kh3 {[%clk 0:00:14.4]} 41...
hxg3 {[%clk 0:01:32.8]} 42. fxg3 {[%clk 0:00:16.3]} 42... Qa2 {[%clk 0:01:33.7]}
43. Kh2 {[%clk 0:00:16.8]} 43... Qxe2 {[%clk 0:01:34.3]} 0-1

[Event "*** Titled Tuesday 3|2 Blitz"]
[Site "Chess.com"]
[Date "2015.08.04"]
[Round "5"]
[White "Keranke"]
[Black "WarlordX"]
[Result "1-0"]
[WhiteElo "2533"]
[BlackElo "2200"]
[TimeControl "180+2"]
[EndTime "12:34:49 PDT"]
[Termination "Keranke won by checkmate"]

1. d4 {[%clk 0:03:01.9]} 1... Nf6 {[%clk 0:03:00.9]} 2. c4 {[%clk 0:03:02.9]}
2... e6 {[%clk 0:03:02.4]} 3. g3 {[%clk 0:03:03.6]} 3... Bb4+ {[%clk 0:03:02.8]}
4. Nd2 {[%clk 0:03:02.8]} 4... O-O {[%clk 0:03:03.5]} 5. Bg2 {[%clk 0:03:02.6]}
5... d6 {[%clk 0:03:04.9]} 6. Nf3 {[%clk 0:03:03.4]} 6... c5 {[%clk 0:03:04]} 7.
O-O {[%clk 0:03:04]} 7... Nc6 {[%clk 0:02:59.4]} 8. Nb3 {[%clk 0:03:02.2]} 8...
Na5 {[%clk 0:02:48]} 9. Be3 {[%clk 0:02:37.2]} 9... Nxb3 {[%clk 0:02:45.7]} 10.
Qxb3 {[%clk 0:02:39.1]} 10... Qe7 {[%clk 0:02:35.8]} 11. Rfd1 {[%clk 0:02:37.5]}
11... Rb8 {[%clk 0:02:31.9]} 12. Bf4 {[%clk 0:02:06.5]} 12... Nh5 {[%clk
0:02:32.9]} 13. Bg5 {[%clk 0:02:07]} 13... Qc7 {[%clk 0:02:25]} 14. a3 {[%clk
0:02:00.7]} 14... Ba5 {[%clk 0:02:25]} 15. dxc5 {[%clk 0:02:02.2]} 15... dxc5
{[%clk 0:02:10.1]} 16. Qa4 {[%clk 0:02:02.1]} 16... h6 {[%clk 0:02:06.2]} 17.
Be3 {[%clk 0:02:01.4]} 17... Bb6 {[%clk 0:02:00.7]} 18. b4 {[%clk 0:01:59]}
18... Qe7 {[%clk 0:01:54.2]} 19. Rac1 {[%clk 0:01:49.4]} 19... Nf6 {[%clk
0:01:43.7]} 20. Bf4 {[%clk 0:01:50.1]} 20... Bd7 {[%clk 0:01:44.4]} 21. Qb3
{[%clk 0:01:46.8]} 21... Rbc8 {[%clk 0:01:44.6]} 22. Bd6 {[%clk 0:01:48]} 22...
Qe8 {[%clk 0:01:44.2]} 23. Ne5 {[%clk 0:01:48.1]} 23... Ba4 {[%clk 0:01:44]} 24.
Qb2 {[%clk 0:01:42.7]} 24... Bxd1 {[%clk 0:01:43.4]} 25. Rxd1 {[%clk 0:01:44.6]}
25... Qa4 {[%clk 0:01:33.3]} 26. Rd3 {[%clk 0:01:42.4]} 26... Rfd8 {[%clk
0:01:23.5]} 27. Bxb7 {[%clk 0:01:42.7]} 27... Qe8 {[%clk 0:00:41.9]} 28. b5
{[%clk 0:01:32.2]} 28... Bc7 {[%clk 0:00:21.3]} 29. Bc6 {[%clk 0:01:26.2]} 29...
Nd7 {[%clk 0:00:18.1]} 30. Bxc7 {[%clk 0:01:25.6]} 30... Rxc7 {[%clk 0:00:19.2]}
31. Qd2 {[%clk 0:01:20.1]} 31... Qe7 {[%clk 0:00:17]} 32. Nxd7 {[%clk
0:01:18.1]} 32... Kh8 {[%clk 0:00:13.7]} 33. a4 {[%clk 0:01:16.1]} 33... e5
{[%clk 0:00:14]} 34. Rd5 {[%clk 0:01:16.5]} 34... f6 {[%clk 0:00:14.4]} 35. a5
{[%clk 0:01:11.4]} 35... Qe6 {[%clk 0:00:12.3]} 36. Nxc5 {[%clk 0:01:10.2]}
36... Rxd5 {[%clk 0:00:12.9]} 37. Qxd5 {[%clk 0:01:03.5]} 37... Qg4 {[%clk
0:00:12.4]} 38. Qd8+ {[%clk 0:01:02.6]} 38... Kh7 {[%clk 0:00:13.3]} 39. Qxc7
{[%clk 0:01:02.4]} 39... Qxe2 {[%clk 0:00:15]} 40. Be4+ {[%clk 0:01:03]} 40...
Kg8 {[%clk 0:00:14.9]} 41. Qc8+ {[%clk 0:01:03.2]} 41... Kf7 {[%clk 0:00:16.2]}
42. Qe6+ {[%clk 0:01:04.9]} 42... Kf8 {[%clk 0:00:17.3]} 43. Nd7# {[%clk
0:01:06.8]} 1-0